Cogmind - Beta 13 @@@ ROGUE MODE // 2024.06.15 @ 22:12:13 Player: ZergFTW Result: Destroyed by Y-45 Defender with Heavy Assault Rifle Performance ------------- Evolutions (2) 1000 Regions Visited (6) 1200 Robots Destroyed (85) 425 Value Destroyed (3504) 3504 Prototype IDs (1) 20 Alien Tech Used (0) 0 Bonus (877) 877 TOTAL SCORE: 7026 Bonus ------- High Alert Combat Kills 677 Entered Garrisons 200 Cogmind --------- Core Integrity 0/550 Matter 235/300 Energy 64/100 System Corruption 11% Temperature Cool (9) Movement Treading (160) Location -8/Garrison Parts ------- > --- POWER (1) -------- (None) > --- PROPULSION (3) --- Light Treads Light Treads > --- UTILITY (4) ------ Large Storage Unit Signal Interpreter Hardened Light Armor Plating Hacking Suite > --- WEAPON (3) ------- Heavy Phase Cannon > --- INVENTORY (15) --- Light Deuterium Engine Light Treads Advanced Visual Processing Unit Sensor Array Sensor Array Improved Sensor Array Signal Interpreter Light Armor Plating Light Armor Plating Relay Coupler [NC] (22) Relay Coupler [NC] (23) Relay Coupler [Sentry] (24) Improved Grenade Launcher Great Maul Peak State ------------ > --- POWER ------------ Nuclear Core > --- PROPULSION ------- Advanced Treads Advanced Treads Improved VTOL Module > --- UTILITY ---------- Large Storage Unit Improved Sensor Array Signal Interpreter Medium Armor Plating > --- WEAPON ----------- Assault Cannon Assault Cannon Assault Cannon > --- INVENTORY -------- Light Deuterium Engine Light Nuclear Core High-capacity Matter Pod Structural Scanner Advanced Visual Processing Unit Sensor Array Sensor Array Signal Interpreter Hacking Suite Assault Cannon Assault Cannon Assault Cannon Assault Cannon Improved Grenade Launcher Great Maul [Rating: 32] Favorites ----------- Power Nuclear Core Engine Light Ion Engine Power Core Nuclear Core Propulsion Advanced Treads Treads Advanced Treads Wheel Wheel Flight Unit Improved VTOL Module Utility Large Storage Unit Device Structural Scanner Storage Large Storage Unit Processor Signal Interpreter Hackware Hacking Suite Protection Light Armor Plating Weapon Assault Cannon Energy Gun Small Laser Energy Cannon Heavy Phase Cannon Ballistic Gun Light Assault Rifle Ballistic Cannon Assault Cannon Launcher Improved Grenade Launcher Impact Weapon Great Maul Slashing Weapon Mining Claw Build | -11 -10 -10 -10 -9 -8 -8 ------- Run | Yrd Mat Min Exi Min Mat Gar Slots Evolved 4 | . . . . . 4 . Power . | . . . . . . . Propulsion 1 | . . . . . 1 . Utility 2 | . . . . . 2 . Weapon 1 | . . . . . 1 . Parts Attached 113 | 8 37 . 1 . 29 38 Power 11 | 1 5 . . . 3 2 Engine 8 | 1 4 . . . 2 1 Core 3 | . 1 . . . 1 1 Reactor . | . . . . . . . Propulsion 27 | 3 9 . . . 11 4 Treads 9 | . . . . . 5 4 Leg . | . . . . . . . Wheel 17 | 3 9 . . . 5 . Hover . | . . . . . . . Flight 1 | . . . . . 1 . Utility 22 | 2 5 . 1 . 5 9 Device 10 | 1 3 . . . 2 4 Storage 6 | 1 2 . 1 . 1 1 Processor 1 | . . . . . 1 . Hackware 1 | . . . . . . 1 Protection 4 | . . . . . 1 3 Artifact . | . . . . . . . Weapon 53 | 2 18 . . . 10 23 Energy Gun 3 | 1 2 . . . . . Energy Cannon 1 | . . . . . . 1 Ballistic Gun 3 | 1 2 . . . . . Ballistic Cannon 28 | . 6 . . . 9 13 Launcher 3 | . . . . . . 3 Special Weapon . | . . . . . . . Impact Weapon 8 | . 1 . . . 1 6 Slashing Weapon 7 | . 7 . . . . . Piercing Weapon . | . . . . . . . Special Melee Weapon . | . . . . . . . Unidentified Prototypes 1 | . . . . . 1 . Parts Lost 19 | . 3 . . . 4 12 Power 6 | . 2 . . . 2 2 Propulsion 6 | . 1 . . . 1 4 Utility 1 | . . . . . . 1 Weapon 6 | . . . . . 1 5 Highest Loss Streak 5 | . 2 . . . 3 5 To Critical Strikes 1 | . . . . . . 1 Average Slot Usage (%) 97 | . 98 100 100 100 94 97 Engine 6 | . 12 14 14 14 7 . Core 4 | . . . . . 1 8 Treads 15 | . . . . . 19 26 Wheel 11 | . 27 28 28 28 6 . Device 11 | . 13 14 14 14 16 8 Storage 10 | . 14 14 14 14 9 9 Processor 5 | . . . . . 9 9 Hackware 3 | . . . . . . 7 Ballistic Cannon 22 | . 20 28 28 28 23 22 Impact Weapon 1 | . . . . . . 3 Slashing Weapon 1 | . 5 . . . . . Naked Turns . | . . . . . . . Heaviest Build 66 | 13 32 32 52 52 66 50 Greatest Support 66 | 26 20 20 20 20 66 66 Greatest Overweight (x) 16 | . 1 1 2 2 16 11 Average Overweight (x) . | . . 1 1 2 . . Largest Inventory Capacity 20 | 8 15 15 20 20 20 15 Average Capacity 14 | 7 12 15 15 20 18 15 Most Carried 20 | 8 15 15 15 16 20 15 Average Carried 13 | 5 11 15 15 15 15 14 Final Capacity 20 | 8 15 15 20 20 15 15 Final Carried 16 | 8 15 15 15 16 15 14 Class Distribution -------------------- 52% | Mutant 24% | Skirmisher 10% | Scavenger-Mutant 8% | Scavenger-Skirmisher Dominant Class ---------------- Mutant | -10/Materials Mutant | -10/Mines Mutant | -10/Exiles Mutant | -9/Mines Skirmisher | -8/Materials Skirmisher | -8/Garrison Resources | -11 -10 -10 -10 -9 -8 -8 ----------- Run | Yrd Mat Min Exi Min Mat Gar Matter Collected 3157 | 339 820 24 . 61 551 1362 Remotely . | . . . . . . . Salvage Created 2477 | 140 749 . . 100 416 1072 Parts 162 | 10 64 . . 3 27 58 Haulers Intercepted 1 | . 1 . . . . . Recyclers Shooed 1 | . 1 . . . . . Parts Field Recycled . | . . . . . . . Retrieved Matter . | . . . . . . . Parts Self-Destructed . | . . . . . . . Prevented . | . . . . . . . Kills | -11 -10 -10 -10 -9 -8 -8 ------- Run | Yrd Mat Min Exi Min Mat Gar Combat Hostiles Destroyed 61 | . 8 . . 3 10 40 Melee 5 | . 2 . . . . 3 Cannons 43 | . 6 . . 2 10 25 AOE 10 | . . . . 1 . 9 Classes Destroyed 12 | 3 5 . . . 3 1 Worker 5 | 1 3 . . . 1 . Builder 4 | . 3 . . . 1 . Tunneler 4 | 2 2 . . . . . Hauler 1 | . 1 . . . . . Recycler 4 | 1 2 . . . 1 . Operator 1 | . 1 . . . . . Watcher 5 | . 3 . . . 2 . Swarmer 15 | . . . . . 2 13 Grunt 31 | . 8 . . 3 4 16 Brawler 2 | . . . . . 1 1 Sentry 10 | . . . . . 3 7 Savage 1 | . . . . . . 1 Guerrilla 2 | . . . . . . 2 Best Kill Streak 10 | 2 4 . . 3 4 10 Combat Bots Only 10 | . 3 . . 3 4 10 Max Kills in Single Turn 4 | 1 1 . . 2 2 4 Gunslinging . | . . . . . . . Exploded 4 | . . . . 1 . 4 Melee 1 | . 1 . . . . 1 Uniques/NPCs Destroyed . | . . . . . . . Combat | -11 -10 -10 -10 -9 -8 -8 -------- Run | Yrd Mat Min Exi Min Mat Gar Hostile Shots Fired 348 | . 38 . . 9 78 223 Missed 91 | . 10 . . 6 26 49 Damage Taken 4060 | . 449 . . 32 951 2628 Core 669 | . 114 . . . 117 438 Absorbed by Shields . | . . . . . . . Regen/Repaired (Parts) 116 | . 32 . . . 84 . Core Remaining (%) 77 | 100 . . . 54 . . Volleys Fired 173 | 9 45 . . 5 35 79 Largest 3 | 2 2 . . 2 3 3 Hottest 132 | 60 85 . . 70 132 132 Shots Fired 423 | 18 89 . . 10 106 200 Gun 36 | 18 18 . . . . . Cannon 383 | . 71 . . 10 106 196 Launcher 4 | . . . . . . 4 Special . | . . . . . . . Kinetic 401 | 9 80 . . 10 106 196 Thermal 18 | 9 9 . . . . . Explosive 4 | . . . . . . 4 Electromagnetic . | . . . . . . . Robot Hit Streak 10 | 7 10 . . 2 5 8 Robot Miss Streak 5 | 1 5 . . 2 4 4 Penetration Max . | . . . . . . . Secondary Targets . | . . . . . . . Shots Hit Robots 210 | 12 49 . . 4 48 97 Core Hits 106 | 5 24 . . 3 23 51 Critical Kills . | . . . . . . . Critical Parts Destroyed 3 | . . . . . . 3 Critical Strikes 11 | . 3 . . . 1 7 Blast 8 | . 3 . . . 1 4 Smash 3 | . . . . . . 3 Melee Attacks 98 | . 33 . . . 1 64 Impact 67 | . 2 . . . 1 64 Slashing 31 | . 31 . . . . . Piercing . | . . . . . . . Sneak Attacks 11 | . 5 . . . . 6 Combat Hostiles . | . . . . . . . Follow-up Attacks 2 | . 2 . . . . . Damage Inflicted 5858 | 135 974 . . 126 1162 3461 Guns 212 | 135 77 . . . . . Cannons 3673 | . 540 . . 68 1162 1903 Explosions 717 | . . . . 58 . 659 Melee 1228 | . 357 . . . . 871 Ramming 28 | . . . . . . 28 Kinetic 3754 | 48 573 . . 68 1162 1903 Thermal 189 | 87 44 . . 58 . . Explosive 659 | . . . . . . 659 Electromagnetic . | . . . . . . . Impact 871 | . . . . . . 871 Slashing 357 | . 357 . . . . . Piercing . | . . . . . . . Highest Corruption 11 | . 1 1 1 1 8 11 Average Corruption 6 | . 1 1 1 1 5 8 Corruption Purged . | . . . . . . . Corruption Blocked . | . . . . . . . Effects 111 | . 1 . 4 1 12 93 Message Errors 24 | . . . 1 . 5 18 Matter Fused 27 | . . . 1 . 2 24 Heat Flow Errors 16 | . . . 1 . 2 13 Energy Discharges 15 | . 1 . . . . 14 Parts Rejected 2 | . . . . . . 2 Parts Fused 2 | . . . . . 1 1 Data Loss (minor) 14 | . . . . 1 . 13 Data Loss (major) 5 | . . . 1 . . 4 Misfires 4 | . . . . . 1 3 Alerts 1 | . . . . . 1 . Weapon Failures 1 | . . . . . . 1 Overload Shots . | . . . . . . . Overflow Damage 348 | . 52 . . . 23 273 Projectiles 54 | . 9 . . . 23 22 Explosions 27 | . . . . . . 27 Melee 267 | . 43 . . . . 224 Knockbacks 42 | . 10 . . . 7 25 Impact 2 | . . . . . . 2 Kinetic 34 | . 9 . . . 6 19 Secondary 6 | . 1 . . . 1 4 Self-Inflicted Damage 132 | . . . . . . 132 Shots 2 | . . . . . . 2 Rammed 4 | . . . . . . 4 Targets Rammed 5 | . . . . . . 5 Kicked . | . . . . . . . Crushed 1 | . . . . . . 1 Highest Temperature 652 | 40 88 . 174 54 255 652 Average Temperature 118 | 17 19 . 94 24 92 161 Received Heat Transfer 1557 | . 225 . . 18 288 1026 Effects 18 | . . . . . . 18 Shutdowns 5 | . . . . . . 5 Energy Bleed 3 | . . . . . . 3 Interference 5 | . . . . . . 5 Matter Decay 1 | . . . . . . 1 Short Circuit 2 | . . . . . . 2 Damage (major) 2 | . . . . . . 2 Siege Activations . | . . . . . . . Robots Corrupted . | . . . . . . . Combat Hostiles . | . . . . . . . Parts Fried 2 | . . . . . . 2 Impact Corruptions 8 | . . . . . 1 7 Robots Melted . | . . . . . . . Combat Hostiles . | . . . . . . . Parts Melted 1 | . . . . . . 1 Heat Transferred 400 | 200 100 . . 100 . . Parts Sabotaged . | . . . . . . . Parts Stolen . | . . . . . . . Parts Stripped . | . . . . . . . Power Chain Reactions . | . . . . . . . Alert | -11 -10 -10 -10 -9 -8 -8 ------- Run | Yrd Mat Min Exi Min Mat Gar Peak Influence 1986 | 20 225 27 . 85 262 1986 Initial 33 | . 13 27 . . 33 13 Average 489 | 7 99 27 . 54 132 902 Maximum Alert Level 5 | . 1 . . . 1 5 Low Security (%) 52 | 100 97 100 . 100 76 12 Level 1 12 | . 2 . . . 23 16 Level 2 2 | . . . . . . 5 Level 3 15 | . . . . . . 32 Level 4 10 | . . . . . . 21 Level 5 5 | . . . . . . 11 High Security . | . . . . . . . Max Security . | . . . . . . . Squads Dispatched 4 | . 3 . . . 1 . Investigation 2 | . 1 . . . 1 . Extermination . | . . . . . . . Reinforcement 2 | . 2 . . . . . Assault . | . . . . . . . Garrison . | . . . . . . . Intercept . | . . . . . . . Searches Triggered . | . . . . . . . Construction Impeded . | . . . . . . . Haulers Reinforced . | . . . . . . . Active Scanning Responses . | . . . . . . . Cargo Convoy Interrupts . | . . . . . . . Stealth | -11 -10 -10 -10 -9 -8 -8 --------- Run | Yrd Mat Min Exi Min Mat Gar Distress Signals 1 | . 1 . . . . . Communications Jammed . | . . . . . . . Distress Signals . | . . . . . . . Times Spotted 84 | . 25 . . 3 14 42 Peak Tracking Total 9 | . 5 . . 3 7 9 Tactical Retreats 6 | . 3 . . . . 3 Traps | -11 -10 -10 -10 -9 -8 -8 ------- Run | Yrd Mat Min Exi Min Mat Gar Traps Triggered 9 | . 4 . . . 4 1 Indirectly . | . . . . . . . Trap Hack Attempts . | . . . . . . . Triggered . | . . . . . . . Disarmed . | . . . . . . . Reprogrammed . | . . . . . . . Reused . | . . . . . . . Traps Extracted . | . . . . . . . Installed . | . . . . . . . Triggered . | . . . . . . . Machines | -11 -10 -10 -10 -9 -8 -8 ---------- Run | Yrd Mat Min Exi Min Mat Gar Machines Disabled 15 | . . . . 1 2 12 Max in Single Turn 2 | . . . . 1 1 2 Garrison Relay 4 | . . . . . . 4 Phase Generator 1 | . . . . . . 1 Machines Repaired . | . . . . . . . Machines Dismantled . | . . . . . . . Machines Sabotaged . | . . . . . . . Overloaded Fab Kills . | . . . . . . . Hacking | -11 -10 -10 -10 -9 -8 -8 --------- Run | Yrd Mat Min Exi Min Mat Gar Machines Accessed 18 | . 7 . 4 . 4 3 Terminals 9 | . 5 . . . 1 3 Fabricators . | . . . . . . . Repair Stations 2 | . 1 . . . 1 . Recycling Units 2 | . 1 . . . 1 . Scanalyzers . | . . . . . . . Garrison Access 1 | . . . . . 1 . Total Hacks 38 | . 17 . 4 . 11 6 Successful 24 | . 10 . 4 . 7 3 Failed 14 | . 7 . . . 4 3 Catastrophic 3 | . 1 . . . 1 1 Database Lockouts . | . . . . . . . Manual 7 | . 4 . . . 2 1 Terminals 17 | . 9 . . . 2 6 Fabricators . | . . . . . . . Repair Stations 10 | . 5 . . . 5 . Recycling Units 6 | . 3 . . . 3 . Scanalyzers . | . . . . . . . Garrison Access 1 | . . . . . 1 . Terminal Hacks 13 | . 5 . 4 . 1 3 Record 5 | . 1 . 4 . . . Open Door 1 | . . . . . . 1 Branch Access Points 2 | . 1 . . . 1 . Locate Traps 1 | . 1 . . . . . Zone Layout 2 | . 2 . . . . . Patrol Navigation 1 | . . . . . . 1 Security Stations 1 | . . . . . . 1 Fabricator Hacks . | . . . . . . . Repair Station Hacks 7 | . 4 . . . 3 . Scan Component 4 | . 2 . . . 2 . Repair 3 | . 2 . . . 1 . Recycling Unit Hacks 3 | . 1 . . . 2 . Process 1 | . . . . . 1 . Report Inventory 1 | . 1 . . . . . Retrieve Matter 1 | . . . . . 1 . Scanalyzer . | . . . . . . . Garrison Access Hacks 1 | . . . . . 1 . Unlock Access 1 | . . . . . 1 . Unauthorized Hacks . | . . . . . . . Terminals . | . . . . . . . Fabricators . | . . . . . . . Repair Stations . | . . . . . . . Recycling Units . | . . . . . . . Scanalyzers . | . . . . . . . Garrison Access . | . . . . . . . Data Cores Recovered . | . . . . . . . Used . | . . . . . . . Hacking Detections 10 | . 5 . . . 2 3 Full Trace Events 1 | . 1 . . . . . Feedback Events . | . . . . . . . Feedback Blocked . | . . . . . . . Robot Schematics Acquired . | . . . . . . . Robots Built . | . . . . . . . Authchips . | . . . . . . . Time . | . . . . . . . Total Robot Build Rating . | . . . . . . . Part Schematics Acquired . | . . . . . . . Parts Built . | . . . . . . . Authchips . | . . . . . . . Time . | . . . . . . . Total Part Build Rating . | . . . . . . . Parts Repaired 3 | . 2 . . . 1 . Time 105 | . 52 . . . 53 . Parts Recycled . | . . . . . . . Recycled Matter 225 | . . . . . 225 . Retrieved Matter 314 | . . . . . 314 . Retrieved Components . | . . . . . . . Parts Scanalyzed . | . . . . . . . Part Schematics Acquired . | . . . . . . . Parts Damaged . | . . . . . . . Bothacking | -11 -10 -10 -10 -9 -8 -8 ------------ Run | Yrd Mat Min Exi Min Mat Gar Used RIF Installer . | . . . . . . . Robots Hacked . | . . . . . . . Non-combat . | . . . . . . . Combat . | . . . . . . . Robot Hacks Applied . | . . . . . . . Relay Couplers Released 15 | . . . . . . 15 Machine Destruction 15 | . . . . . . 15 Fabnet Peak Effective % . | . . . . . . . Robots Rewired . | . . . . . . . Allies Hacked . | . . . . . . . Hacks Repelled . | . . . . . . . Allies | -11 -10 -10 -10 -9 -8 -8 -------- Run | Yrd Mat Min Exi Min Mat Gar Total Allies . | . . . . . . . Largest Group . | . . . . . . . Highest-Rated Group . | . . . . . . . Highest-Rated Ally . | . . . . . . . Total Orders . | . . . . . . . Ally Attacks . | . . . . . . . Total Damage . | . . . . . . . Kills . | . . . . . . . Allies Corrupted . | . . . . . . . Allies Melted . | . . . . . . . Intel | -11 -10 -10 -10 -9 -8 -8 ------- Run | Yrd Mat Min Exi Min Mat Gar Robot Analysis Total . | . . . . . . . Derelict Logs Recovered 1 | . . 1 . . . . Drone Launches . | . . . . . . . Drone Recoveries . | . . . . . . . Exploration | -11 -10 -10 -10 -9 -8 -8 ------------- Run | Yrd Mat Min Exi Min Mat Gar Turns Passed 5945 | 122 1499 121 490 82 995 2636 Spaces Moved 3784 | 85 1151 128 510 60 444 1406 Core 5 | 2 . . . . 1 2 Treads 1740 | . . . . . 336 1404 Legs . | . . . . . . . Wheels 2039 | 83 1151 128 510 60 107 . Hover . | . . . . . . . Flight . | . . . . . . . Fastest Speed 50 | 50 80 95 95 110 95 145 Average Speed 118 | 85 89 95 96 110 138 148 Slowest Speed 850 | 90 95 95 110 110 850 600 Overloaded Moves . | . . . . . . . Propulsion Burnouts . | . . . . . . . Robots Hopped . | . . . . . . . Cave-ins Triggered 1 | . . . . . 1 . Exploration Rate (%) 52 | 5 97 37 93 17 40 76 Regions Visited 6 Branch Regions 3 Pre-discovered Areas . | . . . . . . . Known Exits Taken 2 | . 1 . . . 1 . Unknown Exits Taken 4 | 1 . 1 1 1 . . Scrap Searched 1 | . . 1 . . . . Spaces Dug 38 | . 10 . . . 3 25 Terrain Destroyed 141 | . 10 . . . 20 111 Melee 36 | . 10 . . . 1 25 Projectile 19 | . . . . . 19 . AOE 86 | . . . . . . 86 Terrain Rammed . | . . . . . . . Walls Destroyed . | . . . . . . . Machines Disabled . | . . . . . . . Actions | -11 -10 -10 -10 -9 -8 -8 --------- Run | Yrd Mat Min Exi Min Mat Gar Total 4698 | 116 1475 127 511 66 743 1660 Wait 385 | . 154 . . 1 188 42 Move 3779 | 84 1150 127 509 59 444 1406 Hop . | . . . . . . . Pick Up 85 | 14 27 . . 1 25 18 Fast Attach 11 | 2 6 . . . 3 . Attach 32 | 5 3 . . . 11 13 Detach . | . . . . . . . Swap 72 | 1 28 . 1 . 15 27 Drop 60 | 1 31 . 1 . 21 6 Fire 173 | 9 45 . . 5 35 79 Melee 96 | . 31 . . . 1 64 Ram . | . . . . . . . Kick . | . . . . . . . Crush 5 | . . . . . . 5 Escape Stasis . | . . . . . . . Rewire . | . . . . . . . Trap . | . . . . . . . Miscellaneous . | . . . . . . . Route ------- -11/Scrapyard -10/Materials (discovered 6 exits: [*Mat x3] / *Min x2 / [*Sub]) -10/Mines -10/Exiles (discovered 2 exits: [*Min x2]) -9/Mines -8/Materials (discovered 4 exits: *Fac x2 / Sto / Gar) -8/Garrison (discovered 3 exits: *Mat x3) History --------- Turn | Location | Event 19 | -11/Scrapyard | Discovered new exit (range 15) 123 | -11/Scrapyard | Entered Materials 181 | -10/Materials | Identified exit to Mines 308 | -10/Materials | Build established: Mutant 395 | -10/Materials | Discovered new exit (range 13) 1171 | -10/Materials | Discovered new exit (range 3) 1306 | -10/Materials | Repaired Sensor Array 1325 | -10/Materials | Discovered new exit (range 11) 1336 | -10/Materials | Discovered new exit (range 8) 1503 | -10/Materials | Repaired Sensor Array 1622 | -10/Materials | Entered Mines 1625 | -10/Mines | Learned location of 1 exit from Materials 1738 | -10/Mines | Deemed a non-threat by the Exiles lab entrance 1738 | -10/Mines | Discovered new exit (range 5) 1743 | -10/Mines | Entered Exiles 1743 | -10/Exiles | Found Exiles lab abandoned 1776 | -10/Exiles | Discovered new exit (range 14) 2217 | -10/Exiles | Discovered new exit (range 12) 2233 | -10/Exiles | Entered Mines 2305 | -9/Mines | Discovered new exit (range 8) 2315 | -9/Mines | Entered Materials 2315 | -8/Materials | Evolved 4 slots: Propulsion x1, Utility x2, Weapon x1 2316 | -8/Materials | Identified exit to Factory 2513 | -8/Materials | Lost 3 parts (1p1n1w) 2750 | -8/Materials | Crushed by falling debris 2907 | -8/Materials | Discovered exit to Factory (range 16) 3006 | -8/Materials | Build established: Skirmisher 3025 | -8/Materials | Identified exit to Storage 3242 | -8/Materials | Repaired Broken Adv. Treads 3310 | -8/Materials | Identified exit to Garrison 3310 | -8/Materials | Entered Garrison 3326 | -8/Garrison | Triggered checkpoint 3428 | -8/Garrison | Triggered checkpoint 3476 | -8/Garrison | Garrison Relay disabled 3626 | -8/Garrison | Triggered checkpoint 3696 | -8/Garrison | Discovered new exit (range 5) 3702 | -8/Garrison | Identified exit to Materials 4122 | -8/Garrison | Triggered checkpoint 4128 | -8/Garrison | Destroyed 10 combat bots 4160 | -8/Garrison | Learned Materials security intel 4212 | -8/Garrison | Triggered checkpoint 4277 | -8/Garrison | Garrison Relay disabled 4371 | -8/Garrison | Discovered exit to Materials (range 13) 4404 | -8/Garrison | Triggered checkpoint 4491 | -8/Garrison | Garrison Relay disabled 4853 | -8/Garrison | Build established: Mutant 4872 | -8/Garrison | Phase Generator disabled 5376 | -8/Garrison | Build established: Scavenger-Skirmisher 5497 | -8/Garrison | Core integrity fell below 50% 5520 | -8/Garrison | Triggered checkpoint 5550 | -8/Garrison | Garrison Relay disabled 5675 | -8/Garrison | Discovered exit to Materials (range 10) 5741 | -8/Garrison | Lost 5 parts (2n1u2w) 5919 | -8/Garrison | Core integrity fell below 20% 5938 | -8/Garrison | System corruption reached 10% 5946 | -8/Garrison | Destroyed by Y-45 Defender with Heavy Assault Rifle Last Messages --------------- 05897_ Triggered Alarm Trap. 05897_ An alarm sounds. 05898_ System corrupted: Energy discharge (-60). 05898_ Y-45 Defender springs to life. 05905_ Y-45 Defender suffers critical hit (Smash). 05905_ Destroyed Lgt. Treads. 05905_ Y-45 Defender system corrupted by crushing effect. 05906_ Y-45 Defender IFF system glitched. 05918_ Adv. Treads destroyed. 05922_ Y-45 Defender destroyed. 05926_ Assault Cannon destroyed. 05928_ Y-45 Defender destroyed. 05928_ Machine disabled. 05930_ Acquired 55 matter. 05931_ Lgt. Nuclear Core destroyed. 05934_ P-60 Hacker knocked back. 05937_ Assault Cannon destroyed. 05941_ System corrupted: Energy discharge (-33). 05941_ Acquired Hvy. Phase Cannon. 05943_ P-60 Hacker resets Y-45 Defender, system corruption cleaned. Map ----- +----------------------------------------------------+ | ?????????????????????????????????????????????? | | ?????????????????????????????????????????????? | | ?????????????????????????????????????????????? | | ?????????????????????????????????????????????? | | ?????????????????????????????????????????????? | | ?????????????????????????????????????????????? | | ?????????????????????????????????????????????? | | ?????????????????????????????????????????????? | | ?????????????????????????????????????????????? | | ??????????????????????????????????????????# ? | | ??????????????????????????????????????????# ? | | ????????????????????????????????????????? | | ?????????????????????????????????????????## | | ?????????????????????????????????????????## | | ?????????????????????????????????????????## | | ?????????????????????????????????????????## | | ?????????????????????????????????????????## | | ?????????????????????????????????????????##^^ | | ????????????????????????????????????????? "^ | | ??????????????????????????????????????????" | | ??????????????????????????????????????????" | | ???????????????????############?????????? " | | ???????????????????#""" """"#??#####??### | | ???????????????????#""" !]!Y!"############# | | ???????????????????#" [%%pp=*% | | ?????????#######???#"@![#%##= " | | ?????????# #???#"] #*=# ## ####### | | ????????## =*/#???#"! #[!# ## ##???## | | ????????## ####???#"! ##!# ## ###??## | | ????????#T ##??#"" ? ## ####### | | ????????## #??#"""!!=!!]"#### | | ?????????# #??#""""""""""#?## ####### | | ?????????# ##??############?## ##????# | | ?????????##### ################### ####### | | ?????????#####!################### ####### | | ?????????## ![ ! | | ?????????## ! | | ?????????## = * | | ?????????## < ########### ####### ####### # | | ?????????## ########### ####### ####### # | | ?????????######?##### ####### ##### # | | ?????????#####??## #### # | | ????????????????##""" ^ """#### ####### | | ????????????????##&&" " #### ######### | | ????????????????##&& #### #### ####????# | | ????????????????##""" ^ ^ """#### ####????# | | ????????????????## #### ####????#" | | ????????????????##""" """#### #"##????## | | ????????????????##&& """" #### !"##?????? | | ????????????????##&&" " " #### !! ##?????? | +----------------------------------------------------+ Best States ------------- Heat Dissipation 50 Energy Generation 18 Energy Capacity 250 Matter Stores 300 Matter Capacity 500 Sight Range 16 Robot Scan Range 15 Terrain Scan Density 10 Armor Coverage 225 Evasion (%) 44 Recoil Reduction 3 Offensive Hacking 10 Item Schematics ----------------- None Robot Schematics ------------------ None Fabricated ------------ Nothing Alien Tech Used ----------------- None Achievements -------------- None Challenges ------------ None Game ------ Seed BlastReactiveRouter Manual? 0 Play Time 01:38:46 Cumulative 24.2 hours Start 2024.06.15 @ 14:49:51 End 2024.06.15 @ 22:12:13 Sessions 1 Manual Loads 0 Difficulty Rogue Special Mode None Game No. 17 Rogue 16 Adventurer 1 Explorer 0 Win Type - Total 0 Types 0/0/0/0/0/0/0/0/0 Lore% 15 Gallery% 15 Achievement% 19 Wizard Run 0 Options --------- Layout 1 ASCII 0 Keyboard 0 Movement Mouse Keybinds 0 Fullscreen 2 Font 24/Proggy Map View 76x35 Zoom Use 0% Tactical HUD 1 Map Filters NONE Filters NONE Steam 1 RUN: 9212374b-bedb-4dd1-9485-a96d965f8d67